fUST/lending_fUST_20250107
["ID","MTS","AMOUNT","RATE_DAILY","PERIOD"]
[348005511,1736265049154,-168.65206847,0.00019726,3]
[348005512,1736265049164,-500.0,0.00019726,3]
[348005513,1736265049175,-585.5,0.00019726,3]
[348005514,1736265049185,-500.0,0.00019726,3]
[348005515,1736265049194,-500.0,0.00019726,3]
[348005516,1736265049204,-569.91,0.00019726,3]
[348005517,1736265049214,-625.25,0.00019726,3]
[348005518,1736265049224,-500.0,0.00019726,3]
[348005519,1736265049235,-500.0,0.00019726,3]
[348005520,1736265049244,-500.0,0.00019726,3]
[348005521,1736265049259,-500.0,0.00019726,3]
[348005522,1736265049269,-500.0,0.00019726,3]
[348005523,1736265049278,-500.0,0.00019726,3]
[348005524,1736265049288,-500.0,0.00019726,3]
[348005525,1736265049298,-500.0,0.00019726,3]
[348005526,1736265049308,-497.74288432,0.00019726,3]
[348005527,1736265049317,-500.0,0.00019726,3]
[348005528,1736265049327,-500.0,0.00019726,3]
[348005529,1736265049337,-500.0,0.00019726,3]
[348005530,1736265049351,-500.0,0.00019726,3]
[348005531,1736265049361,-500.0,0.00019726,3]
[348005532,1736265049371,-500.0,0.00019726,3]
[348005533,1736265049381,-500.0,0.00019726,3]
[348005534,1736265049392,-1271.08,0.00019726,3]
[348005536,1736265049402,-740.27,0.00019726,3]
[348005538,1736265049412,-925.88,0.00019726,3]
[348005540,1736265049422,-500.0,0.00019726,3]
[348005542,1736265049432,-500.0,0.00019726,3]
[348005544,1736265049441,-553.81,0.00019726,3]
[348005546,1736265049451,-514.42,0.00019726,3]
[348005548,1736265049461,-500.0,0.00019726,3]
[348005550,1736265049471,-500.0,0.00019726,3]
[348005552,1736265049481,-1014.96,0.00019726,3]
[348005554,1736265049491,-500.0,0.00019726,3]
[348005555,1736265049503,-500.0,0.00019726,3]
[348005557,1736265049513,-643.18,0.00019726,3]
[348005559,1736265049524,-1085.71,0.00019726,3]
[348005561,1736265049534,-584.67,0.00019726,3]
[348005563,1736265049543,-928.05,0.00019726,3]
[348005566,1736265049554,-647.7,0.00019726,3]
[348005567,1736265049564,-500.0,0.00019726,3]
[348005570,1736265049575,-500.0,0.00019726,3]
[348005572,1736265049585,-296.808449,0.00019726,3]
[348005573,1736265049594,-777.52,0.00019726,3]
[348005575,1736265049604,-500.0,0.00019726,3]
[348005577,1736265049614,-708.0,0.00019726,3]
[348005579,1736265049623,-500.0,0.00019726,3]
[348005581,1736265049633,-500.0,0.00019726,3]
[348005583,1736265049642,-500.0,0.00019726,3]
[348005585,1736265049652,-500.0,0.00019726,3]
[348005587,1736265049661,-611.08,0.00019726,3]
[348005589,1736265049671,-547.53,0.00019726,3]
[348005591,1736265049681,-500.0,0.00019726,3]
[348005593,1736265049691,-500.0,0.00019726,3]
[348005595,1736265049701,-1397.48,0.00019726,3]
[348005597,1736265049712,-564.0037121,0.00019726,3]
[348005608,1736265049721,-805.14,0.00019726,3]
[348005610,1736265049838,-500.0,0.00019726,3]
[348005612,1736265049848,-500.0,0.00019726,3]
[348005614,1736265049858,-707.79,0.00019726,3]
[348005616,1736265049867,-500.0,0.00019726,3]
[348005618,1736265049877,-500.0,0.00019726,3]
[348005620,1736265049887,-500.0,0.00019726,3]
[348005622,1736265049897,-500.0,0.00019726,3]
[348005624,1736265049906,-548.77,0.00019726,3]
[348005625,1736265049916,-504.21761115,0.00019726,3]
[348005627,1736265049926,-2305.52,0.00019726,3]
[348005629,1736265049936,-634.57613333,0.00019726,3]
[348005631,1736265049945,-500.0,0.00019726,3]
[348005633,1736265049955,-500.0,0.00019726,3]
[348005635,1736265049964,-500.0,0.00019726,3]
[348005637,1736265049974,-500.0,0.00019726,3]
[348005639,1736265049984,-500.0,0.00019726,3]
[348005641,1736265049993,-445.73565815,0.00019726,3]
[348005643,1736265050006,-500.0,0.00019726,3]
[348005645,1736265050016,-500.0,0.00019726,3]
[348005647,1736265050025,-500.0,0.00019726,3]
[348005648,1736265050036,-3977.11,0.00019726,3]
[348005649,1736265050045,-500.0,0.00019726,3]
[348005650,1736265050054,-500.0,0.00019726,3]
[348005651,1736265050063,-500.0,0.00019726,3]
[348005653,1736265050073,-500.0,0.00019726,3]
[348005655,1736265050083,-500.0,0.00019726,3]
[348005657,1736265050092,-500.0,0.00019726,3]
[348005659,1736265050102,-500.0,0.00019726,3]
[348005661,1736265050111,-1151.81,0.00019726,3]
[348005663,1736265050120,-810.41,0.00019726,3]
[348005665,1736265050130,-500.0,0.00019726,3]
[348005667,1736265050139,-626.25,0.00019726,3]
[348005669,1736265050148,-1507.09,0.00019726,3]
[348005671,1736265050157,-511.64704173,0.00019726,3]
[348005673,1736265050167,-500.0,0.00019726,3]
[348005675,1736265050177,-927.0,0.00019726,3]
[348005678,1736265050186,-500.0,0.00019726,3]
[348005679,1736265050196,-500.0,0.00019726,3]
[348005682,1736265050205,-500.0,0.00019726,3]
[348005684,1736265050215,-500.0,0.00019726,3]
[348005686,1736265050225,-1512.56,0.00019726,3]
[348005687,1736265050235,-500.0,0.00019726,3]
[348005689,1736265050245,-500.0,0.00019726,3]
[348005691,1736265050259,-500.0,0.00019726,3]
[348005693,1736265050269,-500.0,0.00019726,3]
[348005695,1736265050279,-1359.24,0.00019726,3]
[348005697,1736265050289,-500.0,0.00019726,3]
[348005699,1736265050298,-500.0,0.00019726,3]
[348005701,1736265050307,-500.0,0.00019726,3]
[348005703,1736265050317,-500.0,0.00019726,3]
[348005705,1736265050326,-31229.3,0.00019726,3]
[348005706,1736265050336,-500.0,0.00019726,3]
[348005707,1736265050346,-500.0,0.00019726,3]
[348005708,1736265050356,-500.0,0.00019726,3]
[348005709,1736265050366,-500.0,0.00019726,3]
[348005710,1736265050376,-500.0,0.00019726,3]
[348005711,1736265050386,-6737.4,0.00019726,3]
[348005713,1736265050395,-500.0,0.00019726,3]
[348005715,1736265050404,-500.0,0.00019726,3]
[348005717,1736265050413,-500.0,0.00019726,3]
[348005719,1736265050423,-6288.96,0.00019726,3]
[348005721,1736265050432,-500.0,0.00019726,3]
[348005723,1736265050441,-500.0,0.00019726,3]
[348005725,1736265050450,-938.14,0.00019726,3]
[348005727,1736265050459,-500.0,0.00019726,3]
[348005729,1736265050469,-506.38082833,0.00019726,3]
[348005731,1736265050478,-1478.68,0.00019726,3]
[348005733,1736265050487,-500.0,0.00019726,3]
[348005735,1736265050497,-500.0,0.00019726,2]
[348005737,1736265050509,-500.0,0.00019726,3]
[348005739,1736265050519,-1199.71,0.00019726,3]
[348005741,1736265050528,-1199.71,0.00019726,3]
[348005743,1736265050538,-500.0,0.00019726,3]
[348005745,1736265050547,-500.0,0.00019726,3]
[348005747,1736265050557,-500.0,0.00019726,3]
[348005749,1736265050566,-500.0,0.00019726,3]
[348005751,1736265050575,-2756.51,0.00019726,3]
[348005752,1736265050584,-500.0,0.00019726,3]
[348005753,1736265050594,-2312.13,0.00019726,3]
[348005754,1736265050603,-500.0,0.00019726,3]
[348005755,1736265050612,-500.0,0.00019726,3]
[348005756,1736265050621,-500.0,0.00019726,3]
[348005757,1736265050630,-500.0,0.00019726,3]
[348005758,1736265050640,-568.81,0.00019726,3]
[348005759,1736265050652,-500.0,0.00019726,3]
[348005760,1736265050661,-1000.0,0.00019726,7]
[348005761,1736265050670,-500.0,0.00019726,3]
[348005762,1736265050680,-500.0,0.00019863,7]
[348005763,1736265050690,-2463.84253238,0.000199,2]
[348005764,1736265050700,-500.0,0.00019994,2]
[348005765,1736265050709,-500.0,0.0002,3]
[348005766,1736265050718,-500.0,0.0002,3]
[348005767,1736265050728,-160.0,0.0002,2]
[348005768,1736265050739,-188.0,0.0002,2]
[348005769,1736265050756,-500.0,0.0002,3]
[348005770,1736265050772,-500.0,0.0002,3]
[348005771,1736265050781,-6076.0,0.0002,3]
[348005772,1736265050790,-3037.0,0.0002,3]
[348005773,1736265050800,-3037.0,0.0002,3]
[348005774,1736265050810,-3037.0,0.0002,3]
[348005775,1736265050819,-3037.0,0.0002,3]
[348005776,1736265050829,-3827.8,0.0002,2]
[348005777,1736265050838,-655.47,0.0002,3]
[348005778,1736265050847,-500.0,0.0002,3]
[348005779,1736265050857,-500.0,0.0002,3]
[348005780,1736265050866,-500.0,0.0002,3]
[348005781,1736265050875,-506.45,0.0002,3]
[348005782,1736265050884,-500.0,0.0002,3]
[348005783,1736265050894,-500.0,0.0002,3]
[348005784,1736265050903,-500.0,0.0002,3]
[348005785,1736265050912,-500.0,0.0002,3]
[348005786,1736265050921,-500.0,0.0002,3]
[348005787,1736265050931,-500.0,0.0002,3]
[348005788,1736265050940,-500.0,0.0002,3]
[348005789,1736265050950,-500.0,0.0002,3]
[348005790,1736265050960,-500.0,0.0002,3]
[348005791,1736265050969,-514.98862569,0.0002,3]
[348005792,1736265050979,-5561.5,0.0002,3]
[348005793,1736265050988,-500.0,0.0002,3]
[348005794,1736265050997,-505.2879491,0.0002,3]
[348005795,1736265051011,-500.0,0.0002,3]
[348005796,1736265051020,-441.58304375,0.0002,3]
[348005797,1736265051031,-500.0,0.0002,3]
[348005798,1736265051040,-500.0,0.0002,3]
[348005799,1736265051050,-500.0,0.0002,3]
[348005800,1736265051059,-498.89036993,0.0002,3]
[348005801,1736265051069,-500.0,0.0002,3]
[348005802,1736265051078,-500.0,0.0002,3]
[348005803,1736265051088,-500.0,0.0002,3]
[348005804,1736265051097,-500.0,0.0002,3]
[348005805,1736265051107,-500.0,0.0002,3]
[348005806,1736265051116,-3153.06,0.0002,3]
[348005807,1736265051126,-500.0,0.0002,3]
[348005808,1736265051135,-505.00517027,0.0002,3]
[348005809,1736265051144,-500.0,0.0002,3]
[348005810,1736265051154,-500.0,0.0002,3]
[348005811,1736265051163,-636.30412198,0.0002,3]
[348005812,1736265051172,-500.0,0.0002,3]
[348005813,1736265051182,-500.0,0.0002,3]
[348005814,1736265051191,-500.0,0.0002,3]
[348005815,1736265051200,-500.0,0.0002,3]
[348005816,1736265051209,-500.0,0.0002,3]
[348005817,1736265051219,-500.0,0.0002,3]
[348005818,1736265051228,-500.0,0.0002,3]
[348005819,1736265051237,-500.0,0.0002,3]
[348005820,1736265051247,-500.0,0.0002,3]
[348005821,1736265051262,-654.54,0.0002,3]
[348005822,1736265051271,-500.0,0.0002,3]
[348005823,1736265051280,-500.0,0.0002,3]
[348005824,1736265051289,-568.01,0.0002,3]
[348005825,1736265051301,-500.0,0.0002,3]
[348005826,1736265051310,-500.0,0.0002,3]
[348005828,1736265051319,-776.28,0.0002,3]
[348005830,1736265051329,-500.0,0.0002,3]
[348005832,1736265051338,-500.0,0.0002,2]
[348005834,1736265051350,-500.0,0.0002,3]
[348005836,1736265051359,-500.0,0.0002,3]
[348005838,1736265051369,-500.0,0.0002,3]
[348005840,1736265051379,-500.0,0.0002,3]
[348005842,1736265051388,-500.0,0.0002,3]
[348005844,1736265051397,-500.0,0.0002,3]
[348005846,1736265051406,-500.0,0.0002,3]
[348005848,1736265051416,-500.0,0.0002,3]
[348005850,1736265051425,-1106.73,0.0002,3]
[348005852,1736265051435,-1060.33,0.0002,3]
[348005854,1736265051444,-500.0,0.0002,3]
[348005856,1736265051453,-500.0,0.0002,3]
[348005858,1736265051462,-500.0,0.0002,3]
[348005860,1736265051472,-500.0,0.0002,3]
[348005862,1736265051482,-500.0,0.0002,3]
[348005864,1736265051491,-500.0,0.0002,3]
[348005866,1736265051504,-500.0,0.0002,3]
[348005868,1736265051513,-500.0,0.0002,3]
[348005870,1736265051522,-500.0,0.0002,3]
[348005872,1736265051531,-1016.47,0.0002,3]
[348005874,1736265051540,-500.0,0.0002,3]
[348005876,1736265051550,-702.86,0.0002,3]
[348005878,1736265051559,-712.38,0.0002,3]
[348005880,1736265051569,-654.57,0.0002,3]
[348005882,1736265051578,-500.0,0.0002,3]
[348005884,1736265051587,-500.0,0.0002,3]
[348005886,1736265051596,-500.0,0.0002,3]
[348005888,1736265051605,-500.0,0.0002,3]
[348005890,1736265051615,-500.0,0.0002,3]
[348005892,1736265051624,-500.0,0.0002,3]
[348005894,1736265051633,-500.0,0.0002,3]
[348005896,1736265051642,-500.0,0.0002,3]
[348005898,1736265051651,-500.0,0.0002,3]
[348005900,1736265051660,-500.0,0.0002,3]
[348005902,1736265051670,-500.0,0.0002,3]
[348005904,1736265051679,-500.0,0.0002,3]
[348005906,1736265051688,-500.0,0.0002,3]
[348005908,1736265051698,-500.0,0.0002,3]
[348005910,1736265051707,-151.53278215,0.0002,2]
[348005912,1736265051716,-500.0,0.0002,3]
[348005914,1736265051725,-675.19,0.0002,3]
[348005916,1736265051739,-1093.83,0.0002,3]
[348005918,1736265051748,-500.0,0.0002,3]
[348005920,1736265051760,-500.0,0.0002,3]
[348005922,1736265051770,-500.0,0.0002,3]
[348005924,1736265051781,-500.0,0.0002,3]
[348005926,1736265051790,-500.0,0.0002,3]
[348005928,1736265051799,-500.0,0.0002,3]
[348005930,1736265051809,-585.5,0.0002,3]
[348005932,1736265051819,-583.66326964,0.0002,3]
[348005934,1736265051828,-500.0,0.0002,3]
[348005935,1736265051837,-569.91,0.0002,3]
[348005937,1736265051846,-625.25,0.0002,3]
[348005939,1736265051855,-500.0,0.0002,3]
[348005941,1736265051864,-500.0,0.0002,3]
[348005943,1736265051873,-500.0,0.0002,3]
[348005945,1736265051882,-500.0,0.0002,3]
[348005947,1736265051891,-361.8337615,0.0002,3]
[348005949,1736265051900,-500.0,0.0002,3]
[348005951,1736265051909,-500.0,0.0002,3]
[348005953,1736265051920,-502.91123433,0.0002,3]
[348005955,1736265051929,-503.82593398,0.0002,3]
[348005957,1736265051939,-500.0,0.0002,3]
[348005959,1736265051948,-507.08238504,0.0002,3]
[348005961,1736265051957,-500.0,0.0002,3]
[348005963,1736265051966,-500.0,0.0002,3]
[348005965,1736265051976,-500.0,0.0002,3]
[348005967,1736265051985,-1271.08,0.0002,3]
[348005969,1736265051995,-740.27,0.0002,3]
[348005971,1736265052012,-925.88,0.0002,3]
[348005973,1736265052021,-378.10347069,0.0002,3]
[348005975,1736265052030,-553.81,0.0002,3]
[348005977,1736265052040,-514.42,0.0002,3]
[348005979,1736265052049,-500.0,0.0002,3]
[348005981,1736265052059,-500.0,0.0002,3]
[348005983,1736265052068,-1014.96,0.0002,3]
[348005985,1736265052077,-500.0,0.0002,3]
[348005987,1736265052086,-500.0,0.0002,3]
[348005989,1736265052095,-643.18,0.0002,3]
[348005991,1736265052104,-1085.71,0.0002,3]
[348005993,1736265052113,-584.67,0.0002,3]
[348005995,1736265052122,-928.05,0.0002,3]
[348005997,1736265052132,-647.7,0.0002,3]
[348005999,1736265052140,-500.0,0.0002,3]
[348006001,1736265052149,-500.0,0.0002,3]
[348006003,1736265052158,-777.52,0.0002,3]
[348006005,1736265052167,-500.0,0.0002,3]
[348006007,1736265052176,-708.0,0.0002,3]
[348006009,1736265052184,-500.0,0.0002,3]
[348006010,1736265052193,-500.0,0.0002,3]
[348006012,1736265052203,-500.0,0.0002,3]
[348006025,1736265052313,-500.0,0.0002,3]
[348006027,1736265052323,-611.08,0.0002,3]
[348006029,1736265052332,-547.53,0.0002,3]
[348006031,1736265052341,-500.0,0.0002,3]
[348006032,1736265052351,-500.0,0.0002,3]
[348006034,1736265052361,-1397.48,0.0002,3]
[348006036,1736265052371,-805.14,0.0002,3]
[348006038,1736265052381,-500.0,0.0002,3]
[348006040,1736265052391,-707.79,0.0002,3]
[348006042,1736265052400,-500.0,0.0002,3]
[348006044,1736265052409,-500.0,0.0002,3]
[348006046,1736265052419,-500.0,0.0002,3]
[348006048,1736265052428,-500.0,0.0002,3]
[348006050,1736265052437,-579.36,0.0002,3]
[348006052,1736265052447,-548.77,0.0002,3]
[348006054,1736265052456,-2305.52,0.0002,3]
[348006056,1736265052466,-500.0,0.0002,3]
[348006058,1736265052475,-500.0,0.0002,3]
[348006060,1736265052484,-500.0,0.0002,3]
[348006062,1736265052493,-500.0,0.0002,3]
[348006064,1736265052504,-500.0,0.0002,3]
[348006066,1736265052513,-500.0,0.0002,3]
[348006068,1736265052522,-500.0,0.0002,3]
[348006070,1736265052531,-500.0,0.0002,3]
[348006072,1736265052540,-3977.11,0.0002,3]
[348006073,1736265052549,-500.0,0.0002,3]
[348006075,1736265052558,-500.0,0.0002,3]
[348006077,1736265052568,-500.0,0.0002,3]
[348006079,1736265052577,-500.0,0.0002,3]
[348006081,1736265052586,-500.0,0.0002,3]
[348006083,1736265052595,-500.0,0.0002,3]
[348006085,1736265052604,-500.0,0.0002,3]
[348006087,1736265052614,-1151.81,0.0002,3]
[348006089,1736265052623,-810.41,0.0002,3]
[348006091,1736265052632,-500.0,0.0002,3]
[348006093,1736265052642,-626.25,0.0002,3]
[348006095,1736265052651,-1507.09,0.0002,3]
[348006097,1736265052660,-500.0,0.0002,3]
[348006099,1736265052670,-927.0,0.0002,3]
[348006101,1736265052679,-500.0,0.0002,3]
[348006103,1736265052688,-500.0,0.0002,3]
[348006105,1736265052697,-500.0,0.0002,3]
[348006107,1736265052706,-500.0,0.0002,3]
[348006109,1736265052716,-1512.56,0.0002,3]
[348006111,1736265052724,-500.0,0.0002,3]
[348006113,1736265052734,-500.0,0.0002,3]
[348006115,1736265052747,-500.0,0.0002,3]
[348006117,1736265052760,-500.0,0.0002,3]
[348006119,1736265052770,-500.0,0.0002,3]
[348006121,1736265052779,-1359.24,0.0002,3]
[348006123,1736265052788,-500.0,0.0002,3]
[348006125,1736265052798,-500.0,0.0002,3]
[348006127,1736265052808,-500.0,0.0002,3]
[348006129,1736265052817,-31229.3,0.0002,3]
[348006131,1736265052826,-500.0,0.0002,3]
[348006133,1736265052836,-500.0,0.0002,3]
[348006135,1736265052845,-500.0,0.0002,3]
[348006137,1736265052854,-500.0,0.0002,3]
[348006138,1736265052864,-500.0,0.0002,3]
[348006140,1736265052874,-500.0,0.0002,3]
[348006142,1736265052883,-6737.4,0.0002,3]
[348006144,1736265052893,-500.0,0.0002,3]
[348006146,1736265052903,-500.0,0.0002,3]
[348006148,1736265052911,-500.0,0.0002,3]
[348006149,1736265052920,-6288.96,0.0002,3]
[348006150,1736265052929,-500.0,0.0002,3]
[348006152,1736265052939,-938.14,0.0002,3]
[348006154,1736265052949,-500.0,0.0002,3]
[348006156,1736265052958,-1478.68,0.0002,3]
[348006158,1736265052967,-500.0,0.0002,3]
[348006159,1736265052977,-500.0,0.0002,3]
[348006161,1736265052986,-1199.71,0.0002,3]
[348006163,1736265052996,-1199.71,0.0002,3]
[348006165,1736265053013,-500.0,0.0002,3]
[348006167,1736265053023,-500.0,0.0002,3]
[348006169,1736265053032,-500.0,0.0002,3]
[348006171,1736265053041,-500.0,0.0002,3]
[348006173,1736265053050,-2756.51,0.0002,3]
[348006175,1736265053059,-2312.13,0.0002,3]
[348006177,1736265053069,-500.0,0.0002,3]
[348006179,1736265053078,-500.0,0.0002,3]
[348006181,1736265053089,-500.0,0.0002,3]
[348006183,1736265053098,-568.81,0.0002,3]
[348006185,1736265053108,-1000.0,0.0002,7]
[348006187,1736265053117,-500.0,0.0002,3]
[348006189,1736265053126,-500.0,0.00020021,2]
[348006191,1736265053135,-1000.0,0.00020021,2]
[348006193,1736265053144,-2463.84253228,0.00020038,2]
[348006195,1736265053154,-1296.0,0.000201,2]
[348006197,1736265053163,-2463.84253228,0.00020176,2]
[348006199,1736265053172,-768.49845986,0.00020197,2]
[348006201,1736265053182,-2000.0,0.000202,2]
[348006203,1736265053191,-500.0,0.00020273,3]
[348006205,1736265053200,-500.0,0.00020273,3]
[348006207,1736265053209,-500.0,0.00020273,3]
[348006209,1736265053218,-500.0,0.00020273,3]
[348006211,1736265053227,-655.47,0.00020273,3]
[348006213,1736265053236,-500.0,0.00020273,3]
[348006215,1736265053245,-519.59517137,0.00020273,3]
[348006217,1736265053258,-500.0,0.00020273,3]
[348006219,1736265053267,-506.45,0.00020273,3]
[348006221,1736265053276,-500.0,0.00020273,3]
[348006223,1736265053285,-500.0,0.00020273,3]
[348006225,1736265053294,-500.0,0.00020273,3]
[348006227,1736265053303,-500.0,0.00020273,3]
[348006229,1736265053312,-500.0,0.00020273,3]
[348006231,1736265053320,-500.0,0.00020273,3]
[348006232,1736265053329,-447.2338811,0.00020273,3]
[348006234,1736265053338,-500.0,0.00020273,3]
[348006236,1736265053348,-5561.5,0.00020273,3]
[348006238,1736265053357,-506.12213312,0.00020273,3]
[348006240,1736265053366,-500.0,0.00020273,3]
[348006242,1736265053376,-510.14224656,0.00020273,3]
[348006244,1736265053385,-500.0,0.00020273,3]
[348006246,1736265053394,-500.0,0.00020273,3]
[348006248,1736265053403,-500.0,0.00020273,3]
[348006250,1736265053412,-500.0,0.00020273,3]
[348006252,1736265053421,-500.0,0.00020273,3]
[348006254,1736265053430,-500.0,0.00020273,3]
[348006256,1736265053439,-3153.06,0.00020273,3]
[348006258,1736265053448,-500.0,0.00020273,3]
[348006260,1736265053457,-500.0,0.00020273,3]
[348006262,1736265053466,-500.0,0.00020273,3]
[348006264,1736265053476,-500.0,0.00020273,3]
[348006266,1736265053485,-500.0,0.00020273,3]
[348006268,1736265053494,-500.0,0.00020273,3]
[348006269,1736265053505,-183.98679643,0.00020273,3]
[348006271,1736265053516,-500.0,0.00020273,3]
[348006273,1736265053526,-500.0,0.00020273,3]
[348006275,1736265053535,-500.0,0.00020273,3]
[348006277,1736265053544,-500.0,0.00020273,3]
[348006279,1736265053553,-654.54,0.00020273,3]
[348006281,1736265053562,-500.0,0.00020273,3]
[348006283,1736265053572,-500.0,0.00020273,3]
[348006285,1736265053581,-568.01,0.00020273,3]
[348006287,1736265053590,-500.0,0.00020273,3]
[348006289,1736265053599,-776.28,0.00020273,3]
[348006291,1736265053609,-500.0,0.00020273,3]
[348006293,1736265053618,-500.0,0.00020273,3]
[348006295,1736265053627,-500.0,0.00020273,3]
[348006297,1736265053637,-500.0,0.00020273,3]
[348006299,1736265053646,-207.9178126,0.00020273,3]
[348006301,1736265053655,-500.0,0.00020273,3]
[348006303,1736265053665,-500.0,0.00020273,3]
[348006305,1736265053674,-1106.73,0.00020273,3]
[348006306,1736265053683,-1060.33,0.00020273,3]
[348006308,1736265053692,-500.0,0.00020273,3]
[348006310,1736265053702,-500.0,0.00020273,3]
[348006312,1736265053711,-500.0,0.00020273,3]
[348006314,1736265053720,-500.0,0.00020273,3]
[348006316,1736265053730,-500.0,0.00020273,3]
[348006318,1736265053742,-500.0,0.00020273,3]
[348006320,1736265053753,-1016.47,0.00020273,3]
[348006322,1736265053762,-500.0,0.00020273,3]
[348006324,1736265053771,-702.86,0.00020273,3]
[348006326,1736265053781,-712.38,0.00020273,3]
[348006328,1736265053792,-654.57,0.00020273,3]
[348006330,1736265053802,-500.0,0.00020273,3]
[348006332,1736265053811,-500.0,0.00020273,3]
[348006334,1736265053820,-500.0,0.00020273,3]
[348006336,1736265053830,-500.0,0.00020273,3]
[348006338,1736265053839,-500.0,0.00020273,3]
[348006340,1736265053848,-500.0,0.00020273,3]
[348006341,1736265053857,-356.67013099,0.00020273,3]
[348006345,1736265053880,-143.32986901,0.00020273,3]
[348006347,1736265053889,-500.0,0.00020273,3]
[348006349,1736265053898,-500.0,0.00020273,3]
[348006351,1736265053908,-285.84625237,0.00020273,3]
[348006353,1736265053917,-500.0,0.00020273,3]
[348006355,1736265053926,-500.0,0.00020273,3]
[348006357,1736265053935,-500.0,0.00020273,3]
[348006358,1736265053944,-500.0,0.00020273,3]
[348006360,1736265053954,-675.19,0.00020273,3]
[348006362,1736265053963,-1093.83,0.00020273,3]
[348006364,1736265053972,-470.33729816,0.00020273,3]
[348006366,1736265053981,-511.1819391,0.00020273,3]
[348006368,1736265053990,-381.07184108,0.00020273,3]
[348006370,1736265054005,-118.92815892,0.00020273,3]
[348006372,1736265054014,-500.0,0.00020273,3]
[348006373,1736265054024,-500.0,0.00020273,3]
[348006374,1736265054034,-500.0,0.00020273,3]
[348006375,1736265054044,-585.5,0.00020273,3]
[348006376,1736265054053,-500.0,0.00020273,3]
[348006377,1736265054063,-569.91,0.00020273,3]
[348006378,1736265054072,-625.25,0.00020273,3]
[348006379,1736265054082,-500.0,0.00020273,3]
[348006380,1736265054091,-500.0,0.00020273,3]
[348006381,1736265054101,-500.0,0.00020273,3]
[348006382,1736265054112,-500.0,0.00020273,3]
[348006383,1736265054121,-515.81293515,0.00020273,3]
[348006384,1736265054130,-526.20262269,0.00020273,3]
[348006385,1736265054140,-500.0,0.00020273,3]
[348006387,1736265054149,-500.0,0.00020273,3]
[348006389,1736265054159,-1271.08,0.00020273,3]
[348006390,1736265054169,-740.27,0.00020273,3]
[348006392,1736265054178,-591.04627348,0.00020273,3]
[348006395,1736265054190,-334.83372652,0.00020273,3]